Cogmind - Beta 11.1 @@@ ROGUE MODE // 2022.09.13 @ 19:52:19 Player: Flerik Result: Destroyed by S-10 Pest with Light Assault Rifle Performance ------------- Evolutions (1) 500 Regions Visited (4) 800 Robots Destroyed (15) 75 Value Destroyed (372) 372 Prototype IDs (1) 20 Alien Tech Used (0) 0 Bonus (0) 0 TOTAL SCORE: 1767 Bonus ------- None Cogmind --------- Core Integrity 0/400 Matter 250/300 Energy 250/250 System Corruption 0% Temperature Cool (0) Movement Flying (34) Location -9/Mines Parts ------- > --- POWER (1) -------- Ion Engine > --- PROPULSION (3) --- Flight Unit Flight Unit Flight Unit > --- UTILITY (3) ------ Small Storage Unit > --- WEAPON (2) ------- Mining Claw > --- INVENTORY (8) ---- Flight Unit Peak State ------------ > --- POWER ------------ Light Ion Engine > --- PROPULSION ------- Improved Aluminum Leg Improved Aluminum Leg Improved Aluminum Leg > --- UTILITY ---------- Small Storage Unit Decoy Drone Bay > --- WEAPON ----------- Light Assault Rifle Mining Claw > --- INVENTORY -------- Ion Engine Aluminum Leg Aluminum Leg Flight Unit Flight Unit Flight Unit Improved Terrain Scanner [Rating: 24] Favorites ----------- Power Light Ion Engine Engine Light Ion Engine Power Core Light Nuclear Core Propulsion Improved Aluminum Leg Leg Improved Aluminum Leg Flight Unit Flight Unit Utility Small Storage Unit Device Improved Terrain Scanner Storage Small Storage Unit Processor Signal Interpreter Weapon Light Assault Rifle Energy Gun Small Laser Ballistic Gun Light Assault Rifle Slashing Weapon Mining Claw Build | -11 -10 -10 -9 -9 ------- Run | Scr Mat Min Mat Min Slots Evolved 2 | . . . 2 . Power . | . . . . . Propulsion 1 | . . . 1 . Utility 1 | . . . 1 . Weapon . | . . . . . Parts Attached 29 | 7 8 3 6 5 Power 5 | 1 2 . 1 1 Engine 4 | 1 1 . 1 1 Core 1 | . 1 . . . Reactor . | . . . . . Propulsion 13 | 2 4 . 3 4 Treads . | . . . . . Leg 9 | 2 4 . 3 . Wheel . | . . . . . Hover . | . . . . . Flight 4 | . . . . 4 Utility 6 | 2 . 2 2 . Device 3 | 1 . . 2 . Storage 2 | 1 . 1 . . Processor 1 | . . 1 . . Hackware . | . . . . . Protection . | . . . . . Artifact . | . . . . . Weapon 5 | 2 2 1 . . Energy Gun 2 | 1 1 . . . Energy Cannon . | . . . . . Ballistic Gun 2 | 1 1 . . . Ballistic Cannon . | . . . . . Launcher . | . . . . . Special Weapon . | . . . . . Impact Weapon . | . . . . . Slashing Weapon 1 | . . 1 . . Piercing Weapon . | . . . . . Special Melee Weapon . | . . . . . Unidentified Prototypes 1 | . . . 1 . Parts Lost 11 | . 3 2 6 . Power 4 | . 2 1 1 . Propulsion 3 | . . . 3 . Utility 1 | . . . 1 . Weapon 3 | . 1 1 1 . Highest Loss Streak 5 | . 2 2 5 . To Critical Strikes . | . . . . . Average Slot Usage (%) 87 | . 97 90 70 66 Engine 8 | . 8 10 1 11 Leg 27 | . 28 28 28 . Flight 1 | . . . . 33 Device 6 | . 14 1 9 . Storage 13 | . 14 14 11 11 Processor 3 | . . 7 . . Energy Gun 9 | . 16 10 . . Ballistic Gun 11 | . 11 14 8 . Slashing Weapon 4 | . . 3 11 11 Naked Turns . | . . . . . Heaviest Build 25 | 12 14 11 25 12 Greatest Support 39 | 20 26 26 39 12 Greatest Overweight (x) 2 | 1 . . 2 . Average Overweight (x) . | . . . . . Largest Inventory Capacity 8 | 8 8 8 8 8 Average Capacity 7 | 7 8 8 8 8 Most Carried 8 | 2 8 8 8 5 Average Carried 6 | 1 4 7 5 1 Final Capacity 8 | 8 8 8 8 8 Final Carried 8 | 2 8 7 5 1 Class Distribution -------------------- 90% | Mutant 9% | Scavenger-Mutant Dominant Class ---------------- Mutant | -10/Materials Mutant | -10/Mines Mutant | -9/Materials Mutant | -9/Mines Resources | -11 -10 -10 -9 -9 ----------- Run | Scr Mat Min Mat Min Matter Collected 483 | 228 166 38 51 . Remotely . | . . . . . Salvage Created 452 | 49 225 78 100 . Parts 27 | 5 12 2 8 . Haulers Intercepted . | . . . . . Recyclers Shooed . | . . . . . Parts Field Recycled . | . . . . . Retrieved Matter . | . . . . . Parts Self-Destructed . | . . . . . Prevented . | . . . . . Kills | -11 -10 -10 -9 -9 ------- Run | Scr Mat Min Mat Min Combat Hostiles Destroyed 12 | . 7 2 3 . Melee 3 | . . . 3 . Guns 9 | . 7 2 . . Classes Destroyed 3 | 1 2 . . . Tunneler 3 | 2 1 . . . Swarmer 4 | . 3 . 1 . Grunt 8 | . 4 2 2 . Best Kill Streak 4 | 2 4 2 2 . Combat Bots Only 4 | . 4 2 2 . Max Kills in Single Turn 1 | 1 1 1 1 . Gunslinging . | . . . . . Exploded . | . . . . . Melee 1 | . . . 1 . Uniques/NPCs Destroyed . | . . . . . Combat | -11 -10 -10 -9 -9 -------- Run | Scr Mat Min Mat Min Damage Taken 2076 | . 666 271 1131 8 Core 623 | . 145 76 394 8 Absorbed by Shields . | . . . . . Regen/Repaired (Parts) 88 | . . . 88 . Core Remaining (%) 55 | 100 . 11 . . Volleys Fired 56 | 3 38 14 1 . Largest 2 | 2 2 2 1 . Hottest 80 | 60 80 60 20 . Shots Fired 85 | 6 63 15 1 . Gun 85 | 6 63 15 1 . Cannon . | . . . . . Launcher . | . . . . . Special . | . . . . . Kinetic 45 | 3 27 14 1 . Thermal 40 | 3 36 1 . . Explosive . | . . . . . Electromagnetic . | . . . . . Robot Hit Streak 16 | 2 16 11 . . Robot Miss Streak 4 | 1 4 1 1 . Penetration Max . | . . . . . Secondary Targets 3 | . 3 . . . Max Gunslinging Chain 1 | . 1 . . . Shots Hit Robots 69 | 3 39 14 13 . Core Hits 27 | 2 13 7 5 . Critical Kills . | . . . . . Critical Parts Destroyed . | . . . . . Critical Strikes . | . . . . . Melee Attacks 18 | . . . 18 . Impact . | . . . . . Slashing 18 | . . . 18 . Piercing . | . . . . . Sneak Attacks . | . . . . . Combat Hostiles . | . . . . . Follow-up Attacks . | . . . . . Damage Inflicted 908 | 38 433 122 315 . Guns 577 | 38 433 106 . . Cannons . | . . . . . Explosions . | . . . . . Melee 315 | . . . 315 . Ramming 16 | . . 16 . . Kinetic 309 | 26 188 95 . . Thermal 268 | 12 245 11 . . Explosive . | . . . . . Electromagnetic . | . . . . . Impact . | . . . . . Slashing 315 | . . . 315 . Piercing . | . . . . . Highest Corruption . | . . . . . Average Corruption . | . . . . . Corruption Purged . | . . . . . Corruption Blocked . | . . . . . Overload Shots . | . . . . . Overflow Damage . | . . . . . Projectiles . | . . . . . Explosions . | . . . . . Melee . | . . . . . Knockbacks . | . . . . . Impact . | . . . . . Kinetic . | . . . . . Secondary . | . . . . . Self-Inflicted Damage . | . . . . . Shots . | . . . . . Rammed . | . . . . . Targets Rammed 2 | . . 2 . . Kicked 2 | . . 2 . . Crushed . | . . . . . Highest Temperature 288 | . 288 35 7 . Average Temperature 109 | . 125 17 7 . Received Heat Transfer 927 | . 294 174 459 . Effects 2 | . 2 . . . Interference 2 | . 2 . . . Siege Activations . | . . . . . Robots Corrupted . | . . . . . Combat Hostiles . | . . . . . Parts Fried . | . . . . . Impact Corruptions . | . . . . . Robots Melted . | . . . . . Combat Hostiles . | . . . . . Parts Melted 2 | . 2 . . . Heat Transferred 600 | 25 550 25 . . Parts Sabotaged . | . . . . . Parts Stolen . | . . . . . Parts Stripped . | . . . . . Power Chain Reactions . | . . . . . Missiles Intercepted . | . . . . . Alert | -11 -10 -10 -9 -9 ------- Run | Scr Mat Min Mat Min Peak Influence 158 | 10 158 50 68 . Initial 7 | . 6 7 . . Average 29 | 1 91 10 12 . Maximum Alert Level . | . . . . . Low Security (%) 100 | 100 100 100 100 100 Level 1 . | . . . . . Level 2 . | . . . . . Level 3 . | . . . . . Level 4 . | . . . . . Level 5 . | . . . . . High Security . | . . . . . Max Security . | . . . . . Squads Dispatched 2 | . 1 . 1 . Investigation 1 | . 1 . . . Extermination . | . . . . . Reinforcement 1 | . . . 1 . Assault . | . . . . . Garrison . | . . . . . Intercept . | . . . . . Searches Triggered . | . . . . . Construction Impeded . | . . . . . Haulers Reinforced . | . . . . . Active Scanning Responses . | . . . . . Cargo Convoy Interrupts . | . . . . . Stealth | -11 -10 -10 -9 -9 --------- Run | Scr Mat Min Mat Min Distress Signals 5 | . 1 . 4 . Communications Jammed . | . . . . . Distress Signals . | . . . . . Times Spotted 54 | . 10 2 39 3 Peak Tracking Total 9 | . 5 2 9 3 Tactical Retreats 1 | . . . 1 . Traps | -11 -10 -10 -9 -9 ------- Run | Scr Mat Min Mat Min Traps Triggered 1 | . 1 . . . Indirectly . | . . . . . Trap Hack Attempts . | . . . . . Triggered . | . . . . . Disarmed . | . . . . . Reprogrammed . | . . . . . Reused . | . . . . . Traps Extracted . | . . . . . Installed . | . . . . . Triggered . | . . . . . Machines | -11 -10 -10 -9 -9 ---------- Run | Scr Mat Min Mat Min Machines Disabled . | . . . . . Max in Single Turn . | . . . . . Machines Sabotaged . | . . . . . Garrisons Compromised . | . . . . . Overloaded Fab Kills . | . . . . . Hacking | -11 -10 -10 -9 -9 --------- Run | Scr Mat Min Mat Min Machines Accessed 9 | . 5 2 2 . Terminals 7 | . 5 1 1 . Fabricators . | . . . . . Repair Stations 1 | . . . 1 . Recycling Units . | . . . . . Scanalyzers . | . . . . . Garrison Access . | . . . . . Total Hacks 17 | . 8 4 5 . Successful 7 | . 2 2 3 . Failed 10 | . 6 2 2 . Catastrophic 5 | . 3 1 1 . Database Lockouts . | . . . . . Manual 13 | . 8 3 2 . Terminals 13 | . 8 3 2 . Fabricators . | . . . . . Repair Stations 3 | . . . 3 . Recycling Units . | . . . . . Scanalyzers . | . . . . . Garrison Access . | . . . . . Terminal Hacks 4 | . 1 2 1 . Open Door 1 | . . 1 . . Branch Access Points 3 | . 1 1 1 . Fabricator Hacks . | . . . . . Repair Station Hacks 2 | . . . 2 . Scan Component 1 | . . . 1 . Repair 1 | . . . 1 . Recycling Unit Hacks . | . . . . . Scanalyzer . | . . . . . Garrison Access Hacks . | . . . . . Unauthorized Hacks 1 | . 1 . . . Terminals 1 | . 1 . . . Operators 1 | . 1 . . . Fabricators . | . . . . . Repair Stations . | . . . . . Recycling Units . | . . . . . Scanalyzers . | . . . . . Garrison Access . | . . . . . Data Cores Recovered . | . . . . . Used . | . . . . . Hacking Detections 6 | . 4 1 1 . Full Trace Events . | . . . . . Feedback Events . | . . . . . Feedback Blocked . | . . . . . Robot Schematics Acquired . | . . . . . Robots Built . | . . . . . Authchips . | . . . . . Time . | . . . . . Total Robot Build Rating . | . . . . . Part Schematics Acquired . | . . . . . Parts Built . | . . . . . Authchips . | . . . . . Time . | . . . . . Total Part Build Rating . | . . . . . Parts Repaired 1 | . . . 1 . Time 32 | . . . 32 . Parts Recycled . | . . . . . Recycled Matter . | . . . . . Retrieved Matter . | . . . . . Retrieved Components . | . . . . . Parts Scanalyzed . | . . . . . Part Schematics Acquired . | . . . . . Parts Damaged . | . . . . . Bothacking | -11 -10 -10 -9 -9 ------------ Run | Scr Mat Min Mat Min Used RIF Installer . | . . . . . Robots Hacked . | . . . . . Non-combat . | . . . . . Combat . | . . . . . Robot Hacks Applied . | . . . . . Relay Couplers Released . | . . . . . Fabnet Peak Effective % . | . . . . . Robots Rewired . | . . . . . Allies Hacked . | . . . . . Hacks Repelled . | . . . . . Allies | -11 -10 -10 -9 -9 -------- Run | Scr Mat Min Mat Min Total Allies . | . . . . . Largest Group . | . . . . . Highest-Rated Group . | . . . . . Highest-Rated Ally . | . . . . . Total Orders . | . . . . . Ally Attacks . | . . . . . Total Damage . | . . . . . Kills . | . . . . . Allies Corrupted 1 | . . . 1 . Allies Melted . | . . . . . Intel | -11 -10 -10 -9 -9 ------- Run | Scr Mat Min Mat Min Robot Analysis Total . | . . . . . Derelict Logs Recovered 1 | . . 1 . . Drone Launches 16 | . . . 16 . Drone Recoveries . | . . . . . Exploration | -11 -10 -10 -9 -9 ------------- Run | Scr Mat Min Mat Min Turns Passed 1928 | 95 468 946 354 65 Spaces Moved 1239 | 57 297 586 231 68 Core 14 | 4 . . 10 . Treads . | . . . . . Legs 1157 | 53 297 586 221 . Wheels . | . . . . . Hover . | . . . . . Flight 68 | . . . . 68 Fastest Speed 34 | 50 120 120 120 34 Average Speed 116 | 130 120 120 121 34 Slowest Speed 190 | 190 120 120 190 34 Overloaded Moves . | . . . . . Propulsion Burnouts . | . . . . . Robots Hopped . | . . . . . Cave-ins Triggered . | . . . . . Exploration Rate (%) 44 | 5 51 93 61 13 Regions Visited 4 Branch Regions 2 Pre-discovered Areas . | . . . . . Known Exits Taken 3 | . 1 1 1 . Unknown Exits Taken 1 | 1 . . . . Scrap Searched 3 | . . 3 . . Spaces Dug . | . . . . . Terrain Destroyed . | . . . . . Melee . | . . . . . Projectile . | . . . . . AOE . | . . . . . Terrain Rammed . | . . . . . Walls Destroyed . | . . . . . Machines Disabled . | . . . . . Actions | -11 -10 -10 -9 -9 --------- Run | Scr Mat Min Mat Min Total 1610 | 68 347 819 267 109 Wait 248 | . . 206 7 35 Move 1235 | 56 296 585 230 68 Hop . | . . . . . Pick Up 12 | 2 4 3 3 . Fast Attach 10 | 7 1 . 2 . Attach 13 | . 3 2 4 4 Detach 2 | . 1 . 1 . Swap 6 | . 4 1 . 1 Drop 8 | . . 6 1 1 Fire 56 | 3 38 14 1 . Melee 18 | . . . 18 . Ram . | . . . . . Kick 2 | . . 2 . . Crush . | . . . . . Escape Stasis . | . . . . . Rewire . | . . . . . Trap . | . . . . . Miscellaneous . | . . . . . Route ------- -11/Scrapyard -10/Materials (discovered 2 exits: *Min x2) -10/Mines (discovered 2 exits: *Mat x2) -9/Materials (discovered 3 exits: *Mat x2 / *Min) -9/Mines History --------- Turn | Location | Event 13 | -11/Scrapyard | Discovered new exit (range 16) 96 | -11/Scrapyard | Entered Materials 112 | -10/Materials | Discovered new exit (range 8) 288 | -10/Materials | Core integrity fell below 50% 357 | -10/Materials | Identified exit to Mines 564 | -10/Materials | Entered Mines 676 | -10/Mines | Build established: Mutant 676 | -10/Mines | Discovered new exit (range 12) 1046 | -10/Mines | Identified exit to Materials 1154 | -10/Mines | Found the Drone Emporium 1160 | -10/Mines | Learned 2 Materials zone layouts 1164 | -10/Mines | Found Prototype Device 1198 | -10/Mines | Discovered exit to Materials (range 7) 1260 | -10/Mines | Core integrity fell below 20% 1510 | -10/Mines | Entered Materials 1510 | -9/Materials | Evolved 2 slots: Propulsion x1, Utility x1 1510 | -9/Materials | Identified Decoy Drone Bay 1511 | -9/Materials | Identified exit to Materials 1623 | -9/Materials | Identified exit to Mines 1832 | -9/Materials | Repaired Imp. Aluminum Leg? 1833 | -9/Materials | Core integrity fell below 50% 1858 | -9/Materials | Lost 5 parts (1p2n1u1w) 1858 | -9/Materials | Core integrity fell below 20% 1864 | -9/Materials | Entered Mines 1871 | -9/Mines | Met a Derelict bent on vengeance 1929 | -9/Mines | Destroyed by S-10 Pest with Light Assault Rifle Last Messages --------------- 01807_ Lgt. Ion Engine destroyed. 01821_ K-01 Serf cleans the Terminal. 01824_ Imp. Aluminum Leg destroyed. 01826_ Decoy Drone Bay destroyed. 01827_ Imp. Aluminum Leg destroyed. 01829_ Critical hit (Burn: +37). 01832_ >> REPAIR: Completed Imp. Aluminum Leg? 01834_ K-01 Serf cleans the Terminal. 01839_ Critical hit (Burn: +37). 01839_ K-01 Serf cleans the Terminal. 01852_ Acquired Flight Unit. 01857_ G-47 Trooper destroyed. 01858_ W-16 Scout suffers critical hit (Burn). 01858_ W-16 Scout destroyed. 01859_ Acquired 20 matter. 01860_ Aluminum Leg destroyed. LOCATION=MINES GOAL=ESCAPE Something is scanning the area. 01864_ Dropped Aluminum Leg. Map ----- +----------------------------------------------------+ | | | ?????????????????????????????????????????????? | | ?????????????????????????????????????????????? | | ?????????????????????????????????????????????? | | ??????????????????#####??????????????????????? | | ???????????????#### ##?????????????????????? | | ??????????????## #?????????????????????? | | ?????????????## ##?????????????????????? | | ???????????### #??????????????????????? | | ??????????## ##?????" #??????????????? | | ??????????# ##??????" #??????????????? | | ??????????# ###??????"" ???????????????? | | ??????????# ##???????? ????????????????? | | ??????????## ##??????? ?????????????????? | | ???????????## #??????? ?????????????????? | | ????????????# #?????? ??????????????????? | | ????????????# ##?????? ???????????????????? | | ????????????# ##????? #???????????????????? | | ????????????# ###### #???????????????????? | | ????????????# #???????????????????? | | ????###?????# ##### #???????????????????? | | ???## #????# #???? #???????????????????? | | ???# ????## #?????#???????????????????? | | ??## #????# #?????????????????????????? | | ??# ##### ##### ## #????????????????? | | ??# @ s t #????????????????? | | ??# ##########????????????????? | | ??# = ##### ##?????????????????????????? | | ??## ##???####??????????????????????????? | | ???# ##??????????????????????????????????? | | ???## #????????????????????????????????????? | | ????####?????????????????????????????????????? | | ?????????????????????????????????????????????? | | ?????????????????????????????????????????????? | | ?????????????????????????????????????????????? | | ?????????????????????????????????????????????? | | ?????????????????????????????????????????????? | | ?????????????????????????????????????????????? | | ?????????????????????????????????????????????? | | ?????????????????????????????????????????????? | | ?????????????????????????????????????????????? | | ?????????????????????????????????????????????? | | ?????????????????????????????????????????????? | | ?????????????????????????????????????????????? | | ?????????????????????????????????????????????? | | ?????????????????????????????????????????????? | | ?????????????????????????????????????????????? | | ?????????????????????????????????????????????? | | ?????????????????????????????????????????????? | | ?????????????????????????????????????????????? | +----------------------------------------------------+ Best States ------------- Heat Dissipation 28 Energy Generation 14 Energy Capacity 250 Matter Stores 300 Matter Capacity 300 Sight Range 16 Terrain Scan Range 16 Terrain Scan Density 10 Evasion (%) 63 Item Schematics ----------------- None Robot Schematics ------------------ None Fabricated ------------ Nothing Alien Tech Used ----------------- None Achievements -------------- None Challenges ------------ None Game ------ Seed PlasmaIntegrityReplicator Manual? 0 Play Time 00:16:23 Cumulative 22.6 hours Start 2022.09.13 @ 19:36:15 End 2022.09.13 @ 19:52:19 Sessions 1 Manual Loads 0 Difficulty Rogue Special Mode None Game No. 35 Rogue 34 Adventurer 1 Explorer 0 Win Type - Total 0 Types 0/0/0/0/0/0/0/0/0 Lore% 26 Gallery% 30 Achievement% 27 Wizard Run 0 Options --------- ASCII 0 Keyboard 0 Movement Numpad Keybinds 0 Fullscreen 1 Font 18/SmallcapsGlow Map View 76x50 Tactical HUD 1 Map Filters NONE Filters NONE Steam 1 RUN: 01f4381b-168a-46ce-b204-e8f22645a500